fUST/lending_fUST_20251130
["ID","MTS","AMOUNT","RATE_DAILY","PERIOD"]
[395123064,1764457842445,-781.24310203,0.00013018,2]
[395123066,1764457842454,-317.23896284,0.00013094,2]
[395123068,1764457842463,-500.0,0.00013101,2]
[395123070,1764457842474,-1006.12812989,0.000132,2]
[395123071,1764457842484,-1388.87662584,0.00013245,2]
[395123074,1764457842494,-336.56,0.00013265,2]
[395123075,1764457842502,-298.26089446,0.00013269,2]
[395123077,1764457842512,-500.0,0.00013273,2]
[395123080,1764457842521,-500.0,0.00013273,2]
[395123082,1764457842530,-501.20506811,0.00013273,2]
[395123083,1764457842539,-500.0,0.00013273,2]
[395123085,1764457842548,-500.0,0.00013273,2]
[395123088,1764457842557,-500.0,0.00013273,2]
[395123089,1764457842566,-500.0,0.00013273,2]
[395123091,1764457842575,-500.0,0.00013273,2]
[395123093,1764457842584,-500.0,0.00013273,2]
[395123096,1764457842593,-619.45855489,0.00013273,2]
[395123097,1764457842601,-500.0,0.00013273,2]
[395123099,1764457842611,-500.0,0.00013273,2]
[395123102,1764457842620,-500.0,0.00013273,2]
[395123104,1764457842629,-500.0,0.00013273,2]
[395123106,1764457842638,-501.96961443,0.00013273,2]
[395123108,1764457842647,-500.72337876,0.00013273,2]
[395123109,1764457842656,-500.0,0.00013273,2]
[395123112,1764457842665,-166.81648304,0.00013273,2]
[395123114,1764457842676,-357.35662424,0.00013273,2]
[395123116,1764457842685,-501.59792494,0.00013273,2]
[395123117,1764457842694,-500.0,0.00013273,2]
[395123119,1764457842703,-500.0,0.00013273,2]
[395123121,1764457842713,-500.0,0.00013273,2]
[395123123,1764457842723,-500.0,0.00013273,2]
[395123125,1764457842732,-500.0,0.00013273,2]
[395123128,1764457842741,-500.0,0.00013273,2]
[395123129,1764457842750,-500.0,0.00013273,2]
[395123131,1764457842759,-500.0,0.00013273,2]
[395123134,1764457842769,-500.19082328,0.00013273,2]
[395123135,1764457842779,-500.22543398,0.00013273,2]
[395123137,1764457842788,-500.0,0.00013273,2]
[395123138,1764457842798,-500.0,0.00013273,2]
[395123139,1764457842807,-500.0,0.00013273,2]
[395123140,1764457842816,-500.0,0.00013273,2]
[395123141,1764457842825,-225.07445679,0.00013273,2]
[395123142,1764457842835,-500.0,0.00013273,2]
[395123143,1764457842844,-448.20000022,0.00013273,2]
[395123144,1764457842853,-500.0,0.00013273,2]
[395123145,1764457842863,-500.0,0.00013273,2]
[395123146,1764457842872,-500.0,0.00013273,2]
[395123147,1764457842881,-502.39465695,0.00013273,2]
[395123148,1764457842890,-500.0,0.00013273,2]
[395123149,1764457842901,-500.0,0.00013273,2]
[395123150,1764457842910,-500.0,0.00013273,2]
[395123151,1764457842920,-500.0,0.00013273,2]
[395123152,1764457842930,-500.0,0.00013273,2]
[395123153,1764457842939,-295.70852,0.000133,3]
[395123155,1764457842948,-295.70852,0.000133,3]
[395123157,1764457842958,-295.70852,0.000133,3]
[395123159,1764457842967,-295.70852,0.000133,3]
[395123161,1764457842976,-295.70852,0.000133,3]
[395123163,1764457842985,-500.0,0.00013375,2]
[395123165,1764457842994,-151.0,0.000134,2]
[395123167,1764457843004,-11929.42322548,0.00013599,2]
[395123169,1764457843013,-500.0,0.00013649,2]
[395123171,1764457843023,-236.1049793,0.00013667,8]
[395123173,1764457843032,-300.0,0.00013673,2]
[395123175,1764457843043,-500.0,0.00013698,2]
[395123177,1764457843055,-500.0,0.00013698,2]
[395123179,1764457843064,-500.0,0.00013698,2]
[395123181,1764457843074,-500.0,0.00013698,2]
[395123183,1764457843083,-500.0,0.00013698,2]
[395123185,1764457843093,-500.0,0.00013698,2]
[395123187,1764457843102,-500.0,0.00013698,2]
[395123189,1764457843112,-613.55331875,0.00013698,2]
[395123192,1764457843121,-1141.18,0.00013698,2]
[395123195,1764457843130,-500.0,0.00013698,2]
[395123219,1764457843272,-500.0,0.00013698,2]
[395123221,1764457843283,-1000.0,0.00013698,2]
[395123223,1764457843292,-1000.0,0.00013698,2]
[395123225,1764457843303,-1000.0,0.00013698,2]
[395123227,1764457843313,-1000.0,0.00013698,2]
[395123229,1764457843322,-1000.0,0.00013698,2]
[395123230,1764457843331,-1000.0,0.00013698,2]
[395123231,1764457843340,-542.3,0.00013698,2]
[395123232,1764457843349,-541.25323824,0.00013698,2]
[395123233,1764457843358,-500.0,0.00013698,2]
[395123234,1764457843368,-500.0,0.00013698,2]
[395123235,1764457843378,-500.0,0.00013698,2]
[395123236,1764457843387,-516.23096941,0.00013698,2]
[395123237,1764457843398,-500.0,0.00013698,2]
[395123238,1764457843407,-536.33,0.00013698,2]
[395123239,1764457843416,-500.0,0.00013698,2]
[395123240,1764457843426,-500.0,0.00013698,2]
[395123241,1764457843436,-500.0,0.00013698,2]
[395123242,1764457843445,-500.0,0.00013698,2]
[395123243,1764457843454,-500.0,0.00013698,2]
[395123244,1764457843463,-189.75460072,0.00013698,2]
[395123245,1764457843472,-500.0,0.00013698,2]
[395123246,1764457843481,-500.0,0.00013698,2]
[395123247,1764457843490,-500.0,0.00013698,2]
[395123248,1764457843499,-500.0,0.00013698,2]
[395123249,1764457843508,-500.0,0.00013698,2]
[395123250,1764457843517,-595.61,0.00013698,2]
[395123251,1764457843527,-448.32121003,0.00013698,2]
[395123252,1764457843536,-500.0,0.00013698,2]
[395123253,1764457843546,-500.0,0.00013698,2]
[395123254,1764457843555,-500.0,0.00013698,2]
[395123255,1764457843564,-1515.22,0.00013698,2]
[395123256,1764457843573,-657.86,0.00013698,2]
[395123257,1764457843582,-500.0,0.00013698,2]
[395123259,1764457843591,-494.45058172,0.00013698,2]
[395123261,1764457843600,-500.0,0.00013698,2]
[395123263,1764457843609,-500.0,0.00013698,2]
[395123265,1764457843618,-500.0,0.00013698,2]
[395123267,1764457843632,-500.0,0.00013698,2]
[395123269,1764457843646,-500.0,0.00013698,2]
[395123271,1764457843656,-984.18,0.00013698,2]
[395123273,1764457843665,-500.0,0.00013698,2]
[395123275,1764457843673,-500.0,0.00013698,2]
[395123277,1764457843682,-500.0,0.00013698,2]
[395123279,1764457843691,-500.0,0.00013698,2]
[395123281,1764457843700,-500.0,0.00013698,2]
[395123282,1764457843709,-500.0,0.00013698,2]
[395123284,1764457843718,-500.0,0.00013698,2]
[395123286,1764457843728,-500.0,0.00013698,2]
[395123288,1764457843737,-500.0,0.00013698,2]
[395123290,1764457843746,-500.0,0.00013698,2]
[395123292,1764457843754,-500.0,0.00013698,2]
[395123294,1764457843763,-500.0,0.00013698,2]
[395123296,1764457843772,-500.0,0.00013698,2]
[395123298,1764457843781,-800.17,0.00013698,2]
[395123300,1764457843790,-500.0,0.00013698,2]
[395123302,1764457843799,-500.0,0.00013698,2]
[395123304,1764457843809,-272.2679358,0.00013698,2]
[395123306,1764457843819,-500.0,0.00013698,2]
[395123308,1764457843828,-985.22,0.00013698,2]
[395123310,1764457843836,-500.20536264,0.00013698,2]
[395123312,1764457843845,-500.0,0.00013698,2]
[395123314,1764457843855,-500.0,0.00013698,2]
[395123316,1764457843864,-791.05,0.00013698,2]
[395123318,1764457843873,-500.0,0.00013698,2]
[395123320,1764457843882,-500.0,0.00013698,2]
[395123322,1764457843892,-500.0,0.00013698,2]
[395123324,1764457843901,-500.0,0.00013698,2]
[395123326,1764457843911,-621.6,0.00013698,2]
[395123328,1764457843921,-500.0,0.00013698,2]
[395123329,1764457843930,-500.0,0.00013698,2]
[395123331,1764457843939,-500.0,0.00013698,2]
[395123333,1764457843948,-500.0,0.00013698,2]
[395123335,1764457843957,-500.0,0.00013698,2]
[395123337,1764457843966,-500.0,0.00013698,2]
[395123339,1764457843975,-500.0,0.00013698,2]
[395123341,1764457843985,-500.0,0.00013698,2]
[395123343,1764457843995,-500.0,0.00013698,2]
[395123345,1764457844005,-500.0,0.00013698,2]
[395123347,1764457844015,-500.0,0.00013698,2]
[395123349,1764457844024,-500.0,0.00013698,2]
[395123351,1764457844036,-500.0,0.00013698,2]
[395123354,1764457844048,-500.0,0.00013698,2]
[395123355,1764457844058,-500.0,0.00013698,2]
[395123357,1764457844067,-500.0,0.00013698,2]
[395123359,1764457844077,-500.0,0.00013698,2]
[395123361,1764457844085,-500.0,0.00013698,2]
[395123363,1764457844095,-4337.2,0.00013698,2]
[395123365,1764457844105,-500.0,0.00013698,2]
[395123367,1764457844114,-2376.2,0.00013698,2]
[395123369,1764457844126,-500.0,0.00013698,2]
[395123371,1764457844135,-864.18,0.00013698,2]
[395123373,1764457844145,-500.0,0.00013698,2]
[395123375,1764457844155,-549.63,0.00013698,2]
[395123377,1764457844164,-500.0,0.00013698,2]
[395123379,1764457844173,-197.97559976,0.00013698,2]
[395123381,1764457844182,-500.0,0.00013698,2]
[395123383,1764457844192,-500.0,0.00013698,2]
[395123385,1764457844202,-500.0,0.00013698,2]
[395123387,1764457844211,-500.0,0.00013698,2]
[395123389,1764457844221,-500.0,0.00013698,2]
[395123391,1764457844230,-506.99223772,0.00013698,2]
[395123393,1764457844239,-500.0,0.00013698,2]
[395123395,1764457844248,-500.0,0.00013698,2]
[395123397,1764457844258,-535.16,0.00013698,2]
[395123399,1764457844266,-6695.46,0.00013698,2]
[395123401,1764457844275,-1209.38,0.00013698,2]
[395123403,1764457844284,-865.75,0.00013698,2]
[395123405,1764457844294,-580.09,0.00013698,2]
[395123407,1764457844304,-817.45,0.00013698,2]
[395123409,1764457844313,-1292.78,0.00013698,2]
[395123411,1764457844322,-873.36,0.00013698,2]
[395123413,1764457844331,-500.0,0.00013698,2]
[395123415,1764457844340,-500.0,0.00013698,2]
[395123417,1764457844349,-500.0,0.00013698,2]
[395123419,1764457844358,-500.0,0.00013698,2]
[395123420,1764457844368,-734.21,0.00013698,2]
[395123422,1764457844377,-755.89,0.00013698,2]
[395123424,1764457844386,-500.0,0.00013698,2]
[395123426,1764457844395,-406.54896965,0.00013698,2]
[395123428,1764457844404,-500.0,0.00013698,2]
[395123430,1764457844413,-500.0,0.00013698,2]
[395123432,1764457844422,-500.0,0.00013698,2]
[395123434,1764457844432,-533.45,0.00013698,2]
[395123436,1764457844441,-1436.39,0.00013698,2]
[395123438,1764457844449,-1436.39,0.00013698,2]
[395123440,1764457844459,-1436.39,0.00013698,2]
[395123442,1764457844468,-1436.39,0.00013698,2]
[395123444,1764457844476,-1436.39,0.00013698,2]
[395123446,1764457844485,-1436.39,0.00013698,2]
[395123448,1764457844495,-1494.54,0.00013698,2]
[395123450,1764457844504,-1436.39,0.00013698,2]
[395123452,1764457844513,-1436.39,0.00013698,2]
[395123454,1764457844522,-1436.39,0.00013698,2]
[395123456,1764457844532,-1436.39,0.00013698,2]
[395123458,1764457844540,-1436.39,0.00013698,2]
[395123460,1764457844549,-1436.39,0.00013698,2]
[395123462,1764457844558,-1436.39,0.00013698,2]
[395123464,1764457844567,-1436.39,0.00013698,2]
[395123466,1764457844576,-1436.39,0.00013698,2]
[395123468,1764457844584,-1436.39,0.00013698,2]
[395123470,1764457844593,-1436.39,0.00013698,2]
[395123472,1764457844602,-1436.39,0.00013698,2]
[395123473,1764457844611,-1436.39,0.00013698,2]
[395123475,1764457844620,-1436.39,0.00013698,2]
[395123477,1764457844629,-1436.39,0.00013698,2]
[395123479,1764457844638,-1436.39,0.00013698,2]
[395123481,1764457844648,-1436.39,0.00013698,2]
[395123483,1764457844657,-848.59,0.00013698,2]
[395123485,1764457844666,-1436.59313397,0.00013698,2]
[395123488,1764457844680,-500.0,0.00013698,2]
[395123490,1764457844689,-764.51,0.00013698,2]
[395123492,1764457844698,-500.0,0.00013698,2]
[395123494,1764457844707,-500.0,0.00013698,2]
[395123496,1764457844716,-689.25,0.00013698,2]
[395123498,1764457844728,-4944.42,0.00013698,2]
[395123500,1764457844737,-2304.82,0.00013698,2]
[395123502,1764457844746,-500.0,0.00013698,2]
[395123504,1764457844756,-1164.8,0.00013698,2]
[395123506,1764457844765,-965.61,0.00013698,2]
[395123508,1764457844774,-589.98,0.00013698,2]
[395123510,1764457844783,-1153.22,0.00013698,2]
[395123512,1764457844795,-718.2,0.00013698,2]
[395123514,1764457844805,-500.0,0.00013698,2]
[395123516,1764457844814,-500.0,0.00013698,2]
[395123518,1764457844823,-561.69397606,0.00013698,2]
[395123520,1764457844833,-500.0,0.00013698,2]
[395123522,1764457844842,-500.0,0.00013698,2]
[395123524,1764457844851,-1185.3,0.00013698,2]
[395123526,1764457844861,-500.0,0.00013698,2]
[395123528,1764457844870,-903.13,0.00013698,2]
[395123530,1764457844879,-3016.6,0.00013698,2]
[395123532,1764457844888,-3922.74,0.00013698,2]
[395123534,1764457844897,-500.0,0.00013698,2]
[395123536,1764457844907,-500.0,0.00013698,2]
[395123538,1764457844916,-500.0,0.00013698,2]
[395123540,1764457844925,-920.8,0.00013698,2]
[395123542,1764457844935,-541.39,0.00013698,2]
[395123544,1764457844945,-500.0,0.00013698,2]
[395123546,1764457844955,-732.38,0.00013698,2]
[395123548,1764457844964,-500.0,0.00013698,2]
[395123550,1764457844974,-4798.84,0.00013698,2]
[395123552,1764457844983,-782.54,0.00013698,2]
[395123553,1764457844993,-500.0,0.00013698,2]
[395123555,1764457845002,-473.61378354,0.00013698,2]
[395123557,1764457845012,-3409.56,0.00013698,2]
[395123559,1764457845022,-500.0,0.00013698,2]
[395123561,1764457845032,-500.0,0.00013698,2]
[395123563,1764457845041,-500.0,0.00013698,2]
[395123565,1764457845055,-500.0,0.00013698,2]
[395123567,1764457845064,-500.0,0.00013698,2]
[395123569,1764457845073,-500.0,0.00013698,2]
[395123571,1764457845082,-3218.89,0.00013698,2]
[395123573,1764457845092,-500.0,0.00013698,2]
[395123575,1764457845102,-500.0,0.00013698,2]
[395123576,1764457845111,-1012.26,0.00013698,2]
[395123578,1764457845119,-570.72,0.00013698,2]
[395123580,1764457845129,-508.9407805,0.00013698,2]
[395123582,1764457845138,-2206.08,0.00013698,2]
[395123584,1764457845147,-500.0,0.00013698,2]
[395123586,1764457845156,-700.13,0.00013698,2]
[395123588,1764457845166,-1890.18,0.00013698,2]
[395123590,1764457845175,-3305.38,0.00013698,2]
[395123592,1764457845186,-500.0,0.00013698,2]
[395123594,1764457845195,-2232.18,0.00013698,2]
[395123596,1764457845204,-500.0,0.00013698,2]
[395123598,1764457845213,-518.6,0.00013698,2]
[395123600,1764457845223,-500.0,0.00013698,2]
[395123601,1764457845231,-500.0,0.00013698,2]
[395123603,1764457845240,-1055.79,0.00013698,2]
[395123605,1764457845249,-3044.49,0.00013698,2]
[395123607,1764457845259,-500.0,0.00013698,2]
[395123609,1764457845268,-804.44,0.00013698,2]
[395123611,1764457845277,-500.0,0.00013698,2]
[395123613,1764457845287,-500.0,0.00013698,2]
[395123615,1764457845296,-500.0,0.00013698,2]
[395123617,1764457845305,-500.0,0.00013698,2]
[395123619,1764457845315,-500.0,0.00013698,2]
[395123621,1764457845324,-4148.91,0.00013698,2]
[395123623,1764457845334,-4148.91,0.00013698,2]
[395123625,1764457845343,-4148.91,0.00013698,2]
[395123627,1764457845352,-4148.91,0.00013698,2]
[395123629,1764457845361,-4148.91,0.00013698,2]
[395123631,1764457845371,-4148.91,0.00013698,2]
[395123633,1764457845380,-4148.91,0.00013698,2]
[395123635,1764457845390,-4148.91,0.00013698,2]
[395123637,1764457845399,-4148.91,0.00013698,2]
[395123638,1764457845408,-4148.91,0.00013698,2]
[395123640,1764457845418,-4148.91,0.00013698,2]
[395123642,1764457845428,-4148.91,0.00013698,2]
[395123644,1764457845438,-4148.91,0.00013698,2]
[395123646,1764457845448,-4148.91,0.00013698,2]
[395123648,1764457845457,-4148.91,0.00013698,2]
[395123650,1764457845466,-4148.91,0.00013698,2]
[395123652,1764457845475,-1243.28,0.00013698,2]
[395123654,1764457845484,-4148.91,0.00013698,2]
[395123656,1764457845493,-4148.91,0.00013698,2]
[395123658,1764457845502,-2470.37,0.00013698,2]
[395123660,1764457845511,-4148.91,0.00013698,2]
[395123662,1764457845519,-4148.91,0.00013698,2]
[395123664,1764457845528,-4148.91,0.00013698,2]
[395123666,1764457845537,-4148.91,0.00013698,2]
[395123668,1764457845546,-4148.91,0.00013698,2]
[395123669,1764457845555,-4149.12327526,0.00013698,2]
[395123671,1764457845564,-500.0,0.00013698,2]
[395123673,1764457845573,-500.0,0.00013698,2]
[395123675,1764457845583,-795.94,0.00013698,2]
[395123677,1764457845592,-500.0,0.00013698,2]
[395123679,1764457845601,-913.9,0.00013698,2]
[395123681,1764457845610,-2465.25,0.00013698,2]
[395123683,1764457845619,-500.9762728,0.00013698,2]
[395123685,1764457845628,-500.0,0.00013698,2]
[395123687,1764457845637,-5466.41,0.00013698,2]
[395123689,1764457845646,-500.0,0.00013698,2]
[395123691,1764457845655,-629.56,0.00013698,2]
[395123693,1764457845664,-500.0,0.00013698,2]
[395123695,1764457845674,-500.0,0.00013698,2]
[395123697,1764457845682,-500.0,0.00013698,2]
[395123699,1764457845693,-500.0,0.00013698,2]
[395123700,1764457845702,-500.0,0.00013698,2]
[395123703,1764457845712,-3091.62,0.00013698,2]
[395123704,1764457845721,-521.54,0.00013698,2]
[395123706,1764457845730,-2062.69,0.00013698,2]
[395123708,1764457845739,-500.0,0.00013698,2]
[395123710,1764457845749,-500.0,0.00013698,2]
[395123712,1764457845757,-500.0,0.00013698,2]
[395123714,1764457845767,-931.8,0.00013698,2]
[395123716,1764457845775,-942.64,0.00013698,2]
[395123718,1764457845784,-500.0,0.00013698,2]
[395123720,1764457845793,-500.0,0.00013698,2]
[395123722,1764457845802,-500.0,0.00013698,2]
[395123724,1764457845812,-533.99,0.00013698,2]
[395123726,1764457845821,-500.0,0.00013698,2]
[395123728,1764457845830,-620.19,0.00013698,2]
[395123729,1764457845839,-500.0,0.00013698,2]
[395123731,1764457845848,-5000.0,0.00013699,2]
[395123733,1764457845858,-1000.0,0.00013699,2]
[395123735,1764457845867,-750.0,0.00013699,2]
[395123737,1764457845876,-3982.703285,0.00013699,2]
[395123739,1764457845887,-1500.0,0.00013699,2]
[395123741,1764457845896,-151.0,0.00013699,2]
[395123743,1764457845906,-151.0,0.00013699,2]
[395123745,1764457845915,-151.0,0.00013699,2]
[395123747,1764457845924,-151.0,0.00013699,2]
[395123749,1764457845934,-151.0,0.00013699,2]
[395123751,1764457845943,-230.696439,0.00013699,2]
[395123752,1764457845953,-500.0,0.00013699,2]
[395123753,1764457845962,-500.0,0.00013699,2]
[395123754,1764457845971,-500.0,0.00013699,2]
[395123755,1764457845980,-300.98021307,0.00013699,2]
[395123756,1764457845990,-500.0,0.00013699,2]
[395123757,1764457846000,-500.0,0.00013699,2]
[395123758,1764457846009,-500.0,0.00013699,2]
[395123759,1764457846019,-500.0,0.00013699,2]
[395123760,1764457846029,-500.0,0.00013699,2]
[395123761,1764457846038,-500.0,0.00013699,2]
[395123762,1764457846050,-500.0,0.00013699,2]
[395123763,1764457846059,-500.0,0.00013699,2]
[395123764,1764457846069,-500.0,0.00013699,2]
[395123765,1764457846080,-500.0,0.00013699,2]
[395123767,1764457846091,-500.0,0.00013699,2]
[395123770,1764457846100,-500.0,0.00013699,2]
[395123772,1764457846109,-500.0,0.00013699,2]
[395123787,1764457846249,-500.0,0.00013699,2]
[395123789,1764457846260,-276.11762697,0.00013699,2]
[395123791,1764457846270,-500.0,0.00013699,2]
[395123793,1764457846280,-500.0,0.00013699,2]
[395123795,1764457846290,-500.0,0.00013699,2]
[395123797,1764457846299,-500.0,0.00013699,2]
[395123799,1764457846308,-500.0,0.00013699,2]
[395123801,1764457846317,-500.0,0.00013699,2]
[395123803,1764457846327,-500.0,0.00013699,2]
[395123805,1764457846336,-159.5644024,0.00013699,2]
[395123807,1764457846346,-500.0,0.00013699,2]
[395123809,1764457846356,-500.0,0.00013699,2]
[395123811,1764457846365,-500.0,0.00013699,2]
[395123813,1764457846375,-500.0,0.00013699,2]
[395123815,1764457846384,-500.0,0.00013699,2]
[395123817,1764457846394,-500.0,0.00013699,2]
[395123819,1764457846404,-500.0,0.00013699,2]
[395123821,1764457846413,-500.0,0.00013699,2]
[395123823,1764457846421,-500.0,0.00013699,2]
[395123825,1764457846430,-500.0,0.00013699,2]
[395123827,1764457846440,-500.0,0.00013699,2]
[395123829,1764457846450,-1000.0,0.00013699,2]
[395123831,1764457846459,-780.3834,0.00013699,2]
[395123833,1764457846469,-284.2,0.000137,2]
[395123834,1764457846478,-309.29654756,0.00013817,2]
[395123837,1764457846487,-520.93302199,0.00013821,2]
[395123839,1764457846497,-1000.0,0.00013821,2]
[395123841,1764457846506,-534.54514069,0.00013821,2]
[395123842,1764457846515,-1026.37866657,0.00013821,2]
[395123844,1764457846524,-917.58213947,0.00013821,2]
[395123846,1764457846533,-1000.0,0.00013821,2]
[395123848,1764457846543,-766.95911747,0.00013821,2]
[395123851,1764457846552,-1000.0,0.00013821,2]
[395123852,1764457846562,-1000.0,0.00013821,2]
[395123855,1764457846571,-1000.0,0.00013821,2]
[395123856,1764457846580,-1000.0,0.00013821,2]
[395123859,1764457846589,-1000.0,0.00013821,2]
[395123860,1764457846598,-521.67175132,0.00013821,2]
[395123863,1764457846608,-414.40228081,0.00013821,2]
[395123865,1764457846617,-1000.0,0.00013821,2]
[395123866,1764457846626,-1003.40348565,0.00013821,2]
[395123868,1764457846635,-1000.0,0.00013821,2]
[395123870,1764457846644,-1000.0,0.00013821,2]
[395123872,1764457846653,-1000.0,0.00013821,2]
[395123874,1764457846663,-1000.0,0.00013821,2]
[395123876,1764457846672,-1148.37703934,0.00013821,2]
[395123879,1764457846681,-1000.0,0.00013821,2]
[395123880,1764457846691,-1000.0,0.00013821,2]
[395123882,1764457846700,-528.37362186,0.00013821,2]
[395123884,1764457846709,-1000.0,0.00013821,2]
[395123885,1764457846718,-1000.0,0.00013821,2]
[395123886,1764457846727,-1000.0,0.00013821,2]
[395123887,1764457846737,-991.28769921,0.00013821,2]
[395123888,1764457846746,-500.0,0.00013923,2]
[395123889,1764457846755,-600.0,0.00013939,2]
[395123890,1764457846765,-500.0,0.00013972,2]
[395123891,1764457846774,-500.0,0.00013972,2]
[395123892,1764457846784,-500.0,0.00013972,2]
[395123893,1764457846793,-500.0,0.00013972,2]
[395123894,1764457846802,-500.0,0.00013972,2]
[395123895,1764457846811,-500.0,0.00013972,2]
[395123896,1764457846821,-500.0,0.00013972,2]
[395123897,1764457846830,-1141.18,0.00013972,2]
[395123898,1764457846840,-500.0,0.00013972,2]
[395123899,1764457846849,-500.0,0.00013972,2]
[395123900,1764457846859,-500.0,0.00013972,2]
[395123901,1764457846868,-500.0,0.00013972,2]
[395123902,1764457846877,-500.0,0.00013972,2]
[395123903,1764457846886,-500.0,0.00013972,2]
[395123904,1764457846895,-500.0,0.00013972,2]
[395123905,1764457846906,-500.0,0.00013972,2]
[395123906,1764457846915,-500.0,0.00013972,2]
[395123907,1764457846924,-500.0,0.00013972,2]
[395123908,1764457846934,-500.0,0.00013972,2]
[395123909,1764457846943,-500.0,0.00013972,2]
[395123910,1764457846952,-500.0,0.00013972,2]
[395123911,1764457846961,-311.89473751,0.00013972,2]
[395123912,1764457846971,-500.0,0.00013972,2]
[395123913,1764457846980,-500.0,0.00013972,2]
[395123914,1764457846989,-595.61,0.00013972,2]
[395123915,1764457846999,-500.0,0.00013972,2]
[395123916,1764457847008,-500.0,0.00013972,2]
[395123917,1764457847017,-500.0,0.00013972,2]
[395123918,1764457847026,-1515.22,0.00013972,2]
[395123919,1764457847036,-657.86,0.00013972,2]
[395123920,1764457847045,-500.0,0.00013972,2]
[395123921,1764457847057,-500.0,0.00013972,2]
[395123922,1764457847066,-500.0,0.00013972,2]
[395123923,1764457847076,-500.0,0.00013972,2]
[395123924,1764457847085,-500.0,0.00013972,2]
[395123925,1764457847094,-500.0,0.00013972,2]
[395123926,1764457847103,-984.18,0.00013972,2]
[395123927,1764457847113,-500.0,0.00013972,2]
[395123928,1764457847122,-500.0,0.00013972,2]
[395123929,1764457847132,-500.0,0.00013972,2]
[395123930,1764457847141,-500.0,0.00013972,2]
[395123931,1764457847151,-500.0,0.00013972,2]
[395123932,1764457847160,-500.0,0.00013972,2]
[395123933,1764457847168,-500.0,0.00013972,2]
[395123934,1764457847178,-500.0,0.00013972,2]
[395123935,1764457847187,-500.0,0.00013972,2]
[395123936,1764457847197,-500.0,0.00013972,2]
[395123937,1764457847206,-500.0,0.00013972,2]
[395123938,1764457847215,-800.17,0.00013972,2]
[395123939,1764457847224,-500.0,0.00013972,2]
[395123940,1764457847234,-500.0,0.00013972,2]
[395123941,1764457847243,-500.0,0.00013972,2]
[395123942,1764457847252,-985.22,0.00013972,2]
[395123943,1764457847261,-500.0,0.00013972,2]
[395123944,1764457847271,-500.0,0.00013972,2]
[395123945,1764457847281,-791.05,0.00013972,2]
[395123946,1764457847290,-500.0,0.00013972,2]
[395123947,1764457847299,-500.0,0.00013972,2]
[395123948,1764457847309,-500.0,0.00013972,2]
[395123949,1764457847318,-500.0,0.00013972,2]
[395123950,1764457847327,-621.6,0.00013972,2]
[395123951,1764457847336,-500.0,0.00013972,2]
[395123952,1764457847346,-500.0,0.00013972,2]
[395123953,1764457847355,-500.0,0.00013972,2]
[395123954,1764457847364,-500.0,0.00013972,2]
[395123955,1764457847374,-500.0,0.00013972,2]
[395123956,1764457847383,-500.0,0.00013972,2]
[395123957,1764457847393,-500.0,0.00013972,2]